[Event "Titled Tuesday Blitz August 16 Early 2022"]
[White "Quispe Santacruz, Javier"]
[Black "Cannon, David"]
[WhiteFideId "3800920"]
[BlackFideId "3213110"]
[WhiteElo "1929"]
[BlackElo "1901"]
[Result "0-1"]
[Round "05"]
[TimeControl "180+2"]
[Date "2022.08.18"]
[WhiteClock "0:00:00"]
[BlackClock "0:00:00"]

1. d4 {[%clk 0:00:00]}  d5 {[%clk 0:00:00]} 2. c4 {[%clk 0:00:00]}  e6 {[%clk 0:00:00]} 3. cxd5 {[%clk 0:00:00]}  exd5 {[%clk 0:00:00]} 4. Nc3 {[%clk 0:00:00]}  Nf6 {[%clk 0:00:00]} 5. Bg5 {[%clk 0:00:00]}  Be7 {[%clk 0:00:00]} 6. Qc2 {[%clk 0:00:00]}  O-O {[%clk 0:00:00]} 7. e3 {[%clk 0:00:00]}  Nbd7 {[%clk 0:00:00]} 8. Bd3 {[%clk 0:00:00]}  c6 {[%clk 0:00:00]} 9. Nf3 {[%clk 0:00:00]}  Re8 {[%clk 0:00:00]} 10. O-O {[%clk 0:00:00]}  Nf8 {[%clk 0:00:00]} 11. Rab1 {[%clk 0:00:00]}  a5 {[%clk 0:00:00]} 12. a3 {[%clk 0:00:00]}  Ne6 {[%clk 0:00:00]} 13. Bh4 {[%clk 0:00:00]}  g6 {[%clk 0:00:00]} 14. Ne5 {[%clk 0:00:00]}  Ng7 {[%clk 0:00:00]} 15. b4 {[%clk 0:00:00]}  axb4 {[%clk 0:00:00]} 16. axb4 {[%clk 0:00:00]}  Bf5 {[%clk 0:00:00]} 17. b5 {[%clk 0:00:00]}  Rc8 {[%clk 0:00:00]} 18. bxc6 {[%clk 0:00:00]}  bxc6 {[%clk 0:00:00]} 19. Ba6 {[%clk 0:00:00]}  Bxc2 {[%clk 0:00:00]} 0-1


[Site "https://www.chess.com"]

[Event "Titled Tuesday Blitz August 16 Early 2022"]
[White "Ramirez Vido, Robert Yorisan"]
[Black "Kononenko, Dmitry"]
[WhiteFideId "3513823"]
[BlackFideId "14113538"]
[WhiteElo "2475"]
[BlackElo "2129"]
[Result "1/2-1/2"]
[Round "05"]
[TimeControl "180+1"]
[Date "2022.08.16"]
[WhiteClock "0:00:11"]
[BlackClock "0:01:31"]

1. f4 {[%clk 0:03:00]}  e5 {[%clk 0:02:53]} 2. fxe5 {[%clk 0:02:59]}  Nc6 {[%clk 0:02:54]} 3. Nf3 {[%clk 0:02:58]}  g5 {[%clk 0:02:52]} 4. d4 {[%clk 0:02:58]}  g4 {[%clk 0:02:51]} 5. Ng5 {[%clk 0:02:57]}  d5 {[%clk 0:02:47]} 6. exd6 {[%clk 0:02:40]}  Bxd6 {[%clk 0:02:29]} 7. Ne4 {[%clk 0:02:06]}  Nxd4 {[%clk 0:02:25]} 8. Nxd6+ {[%clk 0:02:01]}  Qxd6 {[%clk 0:02:24]} 9. c3 {[%clk 0:01:54]}  Nf5 {[%clk 0:02:18]} 10. Qxd6 {[%clk 0:01:53]}  Nxd6 {[%clk 0:02:19]} 11. Bf4 {[%clk 0:01:50]}  Bf5 {[%clk 0:02:17]} 12. Bxd6 {[%clk 0:01:43]}  cxd6 {[%clk 0:02:18]} 13. Nd2 {[%clk 0:01:44]}  Nf6 {[%clk 0:02:15]} 14. O-O-O {[%clk 0:01:41]}  O-O-O {[%clk 0:02:13]} 15. Nc4 {[%clk 0:01:32]}  Kc7 {[%clk 0:02:13]} 16. e3 {[%clk 0:01:23]}  Rhe8 {[%clk 0:02:11]} 17. Bd3 {[%clk 0:01:20]}  Bxd3 {[%clk 0:02:07]} 18. Rxd3 {[%clk 0:01:21]}  Ne4 {[%clk 0:02:07]} 19. Rf1 {[%clk 0:01:16]}  Re7 {[%clk 0:02:03]} 20. Rf4 {[%clk 0:01:16]}  h5 {[%clk 0:02:00]} 21. Rd5 {[%clk 0:01:00]}  Rdd7 {[%clk 0:01:53]} 22. Rxh5 {[%clk 0:00:58]}  Nc5 {[%clk 0:01:53]} 23. Kd2 {[%clk 0:00:28]}  Ne4+ {[%clk 0:01:53]} 24. Kc2 {[%clk 0:00:26]}  g3 {[%clk 0:01:50]} 25. hxg3 {[%clk 0:00:23]}  Nxg3 {[%clk 0:01:51]} 26. Rg5 {[%clk 0:00:17]}  Ne4 {[%clk 0:01:50]} 27. Rg7 {[%clk 0:00:13]}  f6 {[%clk 0:01:48]} 28. Rxe7 {[%clk 0:00:12]}  Rxe7 {[%clk 0:01:49]} 29. g4 {[%clk 0:00:11]}  d5 {[%clk 0:01:40]} 30. Nd2 {[%clk 0:00:11]}  Re6 {[%clk 0:01:40]} 31. Nxe4 {[%clk 0:00:11]}  dxe4 {[%clk 0:01:41]} 32. Rf5 {[%clk 0:00:10]}  Kd6 {[%clk 0:01:38]} 33. c4 {[%clk 0:00:10]}  b6 {[%clk 0:01:38]} 34. Kc3 {[%clk 0:00:10]}  Ke7 {[%clk 0:01:32]} 35. Kd4 {[%clk 0:00:10]}  Rd6+ {[%clk 0:01:33]} 36. Kxe4 {[%clk 0:00:11]}  Rd2 {[%clk 0:01:33]} 37. g5 {[%clk 0:00:10]}  fxg5 {[%clk 0:01:32]} 38. Rxg5 {[%clk 0:00:11]}  Rxb2 {[%clk 0:01:32]} 39. Rg7+ {[%clk 0:00:11]}  Kd6 {[%clk 0:01:32]} 40. Rxa7 {[%clk 0:00:12]}  Rb4 {[%clk 0:01:30]} 41. Kd3 {[%clk 0:00:10]}  Kc5 {[%clk 0:01:30]} 42. Rc7+ {[%clk 0:00:10]}  Kd6 {[%clk 0:01:30]} 43. Ra7 {[%clk 0:00:10]}  Kc5 {[%clk 0:01:30]} 44. Rc7+ {[%clk 0:00:11]}  Kd6 {[%clk 0:01:31]} 45. Ra7 {[%clk 0:00:11]} 1/2-1/2


[Site "https://www.chess.com"]

[Event "Titled Tuesday Blitz August 16 Early 2022"]
[White "Rose, Felix"]
[Black "Kiseljova, Marya"]
[WhiteFideId "5105722"]
[BlackFideId "4155009"]
[WhiteElo "2039"]
[BlackElo "1697"]
[Result "0-1"]
[Round "05"]
[TimeControl "180+2"]
[Date "2022.08.18"]
[WhiteClock "0:00:00"]
[BlackClock "0:00:00"]

1. e4 {[%clk 0:00:00]}  c5 {[%clk 0:00:00]} 2. Nf3 {[%clk 0:00:00]}  Nc6 {[%clk 0:00:00]} 3. d4 {[%clk 0:00:00]}  cxd4 {[%clk 0:00:00]} 4. Nxd4 {[%clk 0:00:00]}  g6 {[%clk 0:00:00]} 5. c4 {[%clk 0:00:00]}  Bg7 {[%clk 0:00:00]} 6. Be3 {[%clk 0:00:00]}  Nf6 {[%clk 0:00:00]} 7. Nc3 {[%clk 0:00:00]}  O-O {[%clk 0:00:00]} 8. Be2 {[%clk 0:00:00]}  d6 {[%clk 0:00:00]} 9. f3 {[%clk 0:00:00]}  Nxd4 {[%clk 0:00:00]} 10. Bxd4 {[%clk 0:00:00]}  Bd7 {[%clk 0:00:00]} 11. Qd2 {[%clk 0:00:00]}  a5 {[%clk 0:00:00]} 12. h4 {[%clk 0:00:00]}  h5 {[%clk 0:00:00]} 13. g4 {[%clk 0:00:00]}  hxg4 {[%clk 0:00:00]} 14. h5 {[%clk 0:00:00]}  e5 {[%clk 0:00:00]} 15. Be3 {[%clk 0:00:00]}  gxh5 {[%clk 0:00:00]} 16. Qxd6 {[%clk 0:00:00]}  Bc6 {[%clk 0:00:00]} 17. Qxe5 {[%clk 0:00:00]}  Nxe4 {[%clk 0:00:00]} 18. Qxh5 {[%clk 0:00:00]}  Nf6 {[%clk 0:00:00]} 0-1


[Site "https://www.chess.com"]

[Event "Titled Tuesday Blitz August 16 Early 2022"]
[White "Sailer, Mike"]
[Black "Mouhamad, Joachim"]
[WhiteFideId "2012901"]
[BlackFideId "656410"]
[WhiteElo "2109"]
[BlackElo "2147"]
[Result "0-1"]
[Round "05"]
[TimeControl "180+2"]
[Date "2022.08.18"]
[WhiteClock "0:00:00"]
[BlackClock "0:00:00"]

1. d4 {[%clk 0:00:00]}  Nf6 {[%clk 0:00:00]} 2. Nc3 {[%clk 0:00:00]}  d5 {[%clk 0:00:00]} 3. Bf4 {[%clk 0:00:00]}  c5 {[%clk 0:00:00]} 4. e4 {[%clk 0:00:00]}  dxe4 {[%clk 0:00:00]} 5. d5 {[%clk 0:00:00]}  a6 {[%clk 0:00:00]} 6. Qd2 {[%clk 0:00:00]}  g6 {[%clk 0:00:00]} 7. O-O-O {[%clk 0:00:00]}  Bg7 {[%clk 0:00:00]} 8. d6 {[%clk 0:00:00]}  e6 {[%clk 0:00:00]} 9. f3 {[%clk 0:00:00]}  exf3 {[%clk 0:00:00]} 10. Nxf3 {[%clk 0:00:00]}  O-O {[%clk 0:00:00]} 11. h4 {[%clk 0:00:00]}  Nh5 {[%clk 0:00:00]} 12. Bg5 {[%clk 0:00:00]}  f6 {[%clk 0:00:00]} 13. Bh6 {[%clk 0:00:00]}  Bd7 {[%clk 0:00:00]} 14. Bxg7 {[%clk 0:00:00]}  Nxg7 {[%clk 0:00:00]} 15. h5 {[%clk 0:00:00]}  g5 {[%clk 0:00:00]} 16. Ne4 {[%clk 0:00:00]}  b6 {[%clk 0:00:00]} 17. Nfxg5 {[%clk 0:00:00]}  fxg5 {[%clk 0:00:00]} 18. Nxg5 {[%clk 0:00:00]}  Rf5 {[%clk 0:00:00]} 19. Ne4 {[%clk 0:00:00]}  Nc6 {[%clk 0:00:00]} 20. Bd3 {[%clk 0:00:00]}  Ne5 {[%clk 0:00:00]} 21. g4 {[%clk 0:00:00]}  Nxd3+ {[%clk 0:00:00]} 22. Qxd3 {[%clk 0:00:00]}  Rf4 {[%clk 0:00:00]} 23. g5 {[%clk 0:00:00]}  Kh8 {[%clk 0:00:00]} 24. Nf6 {[%clk 0:00:00]}  Rxf6 {[%clk 0:00:00]} 25. gxf6 {[%clk 0:00:00]}  Qxf6 {[%clk 0:00:00]} 26. h6 {[%clk 0:00:00]}  Nf5 {[%clk 0:00:00]} 27. Rdg1 {[%clk 0:00:00]}  Rg8 {[%clk 0:00:00]} 28. Rxg8+ {[%clk 0:00:00]}  Kxg8 {[%clk 0:00:00]} 29. Rg1+ {[%clk 0:00:00]}  Kf7 {[%clk 0:00:00]} 30. Kb1 {[%clk 0:00:00]}  Qd4 {[%clk 0:00:00]} 31. Qf1 {[%clk 0:00:00]}  Qxd6 {[%clk 0:00:00]} 32. Rg7+ {[%clk 0:00:00]}  Ke8 {[%clk 0:00:00]} 33. Rxh7 {[%clk 0:00:00]}  Qe5 {[%clk 0:00:00]} 34. b3 {[%clk 0:00:00]}  b5 {[%clk 0:00:00]} 35. Qd1 {[%clk 0:00:00]}  Nd4 {[%clk 0:00:00]} 36. Qg1 {[%clk 0:00:00]}  Kd8 {[%clk 0:00:00]} 37. Qg7 {[%clk 0:00:00]}  Qd5 {[%clk 0:00:00]} 38. Qf8+ {[%clk 0:00:00]}  Kc7 {[%clk 0:00:00]} 39. Qe7 {[%clk 0:00:00]}  Qd6 {[%clk 0:00:00]} 0-1


[Site "https://www.chess.com"]

[Event "Titled Tuesday Blitz August 16 Early 2022"]
[White "Salman, Pavel"]
[Black "Borgaonkar Akshay"]
[WhiteFideId "24153753"]
[BlackFideId "25639110"]
[WhiteElo "2143"]
[BlackElo "1755"]
[Result "1-0"]
[Round "05"]
[TimeControl "180+2"]
[Date "2022.08.18"]
[WhiteClock "0:00:00"]
[BlackClock "0:00:00"]

1. Nf3 {[%clk 0:00:00]}  Nf6 {[%clk 0:00:00]} 2. g3 {[%clk 0:00:00]}  g6 {[%clk 0:00:00]} 3. Bg2 {[%clk 0:00:00]}  Bg7 {[%clk 0:00:00]} 4. O-O {[%clk 0:00:00]}  O-O {[%clk 0:00:00]} 5. d3 {[%clk 0:00:00]}  d6 {[%clk 0:00:00]} 6. Nbd2 {[%clk 0:00:00]}  Nbd7 {[%clk 0:00:00]} 7. e4 {[%clk 0:00:00]}  e5 {[%clk 0:00:00]} 8. Re1 {[%clk 0:00:00]}  Re8 {[%clk 0:00:00]} 9. a4 {[%clk 0:00:00]}  a5 {[%clk 0:00:00]} 10. c3 {[%clk 0:00:00]}  c6 {[%clk 0:00:00]} 11. Nc4 {[%clk 0:00:00]}  Nc5 {[%clk 0:00:00]} 12. Bg5 {[%clk 0:00:00]}  Bg4 {[%clk 0:00:00]} 13. h3 {[%clk 0:00:00]}  Bxf3 {[%clk 0:00:00]} 14. Qxf3 {[%clk 0:00:00]}  h6 {[%clk 0:00:00]} 15. Bxf6 {[%clk 0:00:00]}  Qxf6 {[%clk 0:00:00]} 16. Qxf6 {[%clk 0:00:00]}  Bxf6 {[%clk 0:00:00]} 17. Nxd6 {[%clk 0:00:00]}  Red8 {[%clk 0:00:00]} 18. Nc4 {[%clk 0:00:00]}  Nxd3 {[%clk 0:00:00]} 19. Re2 {[%clk 0:00:00]}  Nc5 {[%clk 0:00:00]} 20. f4 {[%clk 0:00:00]}  exf4 {[%clk 0:00:00]} 21. gxf4 {[%clk 0:00:00]}  Nd3 {[%clk 0:00:00]} 22. Rf1 {[%clk 0:00:00]}  Be7 {[%clk 0:00:00]} 23. e5 {[%clk 0:00:00]}  Ra6 {[%clk 0:00:00]} 24. f5 {[%clk 0:00:00]}  b5 {[%clk 0:00:00]} 25. Nd2 {[%clk 0:00:00]}  Bc5+ {[%clk 0:00:00]} 26. Kh2 {[%clk 0:00:00]}  Nxe5 {[%clk 0:00:00]} 27. Ne4 {[%clk 0:00:00]}  Bf8 {[%clk 0:00:00]} 28. fxg6 {[%clk 0:00:00]}  Nxg6 {[%clk 0:00:00]} 29. Ref2 {[%clk 0:00:00]}  Ra7 {[%clk 0:00:00]} 30. Nf6+ {[%clk 0:00:00]}  Kh8 {[%clk 0:00:00]} 31. Bxc6 {[%clk 0:00:00]}  Bd6+ {[%clk 0:00:00]} 32. Kh1 {[%clk 0:00:00]}  Re7 {[%clk 0:00:00]} 33. Bxb5 {[%clk 0:00:00]}  Re3 {[%clk 0:00:00]} 34. Rf3 {[%clk 0:00:00]}  Rxf3 {[%clk 0:00:00]} 35. Rxf3 {[%clk 0:00:00]}  Be5 {[%clk 0:00:00]} 36. Nd7 {[%clk 0:00:00]}  Rg8 {[%clk 0:00:00]} 37. Rxf7 {[%clk 0:00:00]}  Bd6 {[%clk 0:00:00]} 38. Nf6 {[%clk 0:00:00]}  Rg7 {[%clk 0:00:00]} 39. Rxg7 {[%clk 0:00:00]}  Kxg7 {[%clk 0:00:00]} 40. Ne4 {[%clk 0:00:00]}  Be5 {[%clk 0:00:00]} 41. b4 {[%clk 0:00:00]}  axb4 {[%clk 0:00:00]} 42. cxb4 {[%clk 0:00:00]}  Bf4 {[%clk 0:00:00]} 43. a5 {[%clk 0:00:00]}  Ne5 {[%clk 0:00:00]} 44. a6 {[%clk 0:00:00]}  Nd3 {[%clk 0:00:00]} 45. Bxd3 {[%clk 0:00:00]} 1-0


[Site "https://www.chess.com"]

[Event "Titled Tuesday Blitz August 16 Early 2022"]
[White "Samadov, Read"]
[Black "Subelj, Jan"]
[WhiteFideId "13417444"]
[BlackFideId "14618583"]
[WhiteElo "2084"]
[BlackElo "2331"]
[Result "0-1"]
[Round "05"]
[TimeControl "180+1"]
[Date "2022.08.16"]
[WhiteClock "0:00:05"]
[BlackClock "0:00:11"]

1. d4 {[%clk 0:03:00]}  d5 {[%clk 0:02:57]} 2. c4 {[%clk 0:03:00]}  c6 {[%clk 0:02:57]} 3. Nf3 {[%clk 0:03:00]}  Nf6 {[%clk 0:02:56]} 4. Nc3 {[%clk 0:02:52]}  e6 {[%clk 0:02:56]} 5. e3 {[%clk 0:02:51]}  Nbd7 {[%clk 0:02:53]} 6. Qc2 {[%clk 0:02:51]}  Bd6 {[%clk 0:02:51]} 7. b3 {[%clk 0:02:51]}  O-O {[%clk 0:02:50]} 8. Be2 {[%clk 0:02:52]}  b6 {[%clk 0:02:45]} 9. O-O {[%clk 0:02:52]}  Bb7 {[%clk 0:02:45]} 10. Bb2 {[%clk 0:02:52]}  Qe7 {[%clk 0:02:43]} 11. Rad1 {[%clk 0:02:52]}  Rad8 {[%clk 0:02:43]} 12. Rfe1 {[%clk 0:02:52]}  Rfe8 {[%clk 0:02:43]} 13. Bf1 {[%clk 0:02:50]}  e5 {[%clk 0:02:40]} 14. cxd5 {[%clk 0:02:47]}  e4 {[%clk 0:02:33]} 15. dxc6 {[%clk 0:02:07]}  exf3 {[%clk 0:02:03]} 16. cxd7 {[%clk 0:02:06]}  Bxh2+ {[%clk 0:02:00]} 17. Kxh2 {[%clk 0:01:36]}  Qd6+ {[%clk 0:01:58]} 18. g3 {[%clk 0:01:10]}  Ng4+ {[%clk 0:01:56]} 19. Kh3 {[%clk 0:01:11]}  Qxd7 {[%clk 0:01:49]} 20. Kh4 {[%clk 0:01:08]}  Re6 {[%clk 0:01:41]} 21. Qf5 {[%clk 0:00:51]}  Bc8 {[%clk 0:01:27]} 22. e4 {[%clk 0:00:43]}  Nh6 {[%clk 0:01:06]} 23. Qxf3 {[%clk 0:00:17]}  Qe7+ {[%clk 0:00:57]} 24. Kh3 {[%clk 0:00:17]}  Rf6+ {[%clk 0:00:56]} 25. Kg2 {[%clk 0:00:17]}  Rxf3 {[%clk 0:00:53]} 26. Kxf3 {[%clk 0:00:18]}  Bg4+ {[%clk 0:00:49]} 27. Kg2 {[%clk 0:00:19]}  Bxd1 {[%clk 0:00:40]} 28. Rxd1 {[%clk 0:00:20]}  Ng4 {[%clk 0:00:31]} 29. Be2 {[%clk 0:00:18]}  Nf6 {[%clk 0:00:30]} 30. Bf3 {[%clk 0:00:19]}  g5 {[%clk 0:00:29]} 31. e5 {[%clk 0:00:19]}  g4 {[%clk 0:00:28]} 32. Bc6 {[%clk 0:00:19]}  Qe6 {[%clk 0:00:25]} 33. Bb7 {[%clk 0:00:15]}  Qd7 {[%clk 0:00:19]} 34. Be4 {[%clk 0:00:14]}  Nxe4 {[%clk 0:00:19]} 35. Nxe4 {[%clk 0:00:15]}  Qc6 {[%clk 0:00:18]} 36. d5 {[%clk 0:00:15]}  Rxd5 {[%clk 0:00:17]} 37. Rc1 {[%clk 0:00:11]}  Rc5 {[%clk 0:00:16]} 38. Re1 {[%clk 0:00:11]}  Rc2 {[%clk 0:00:15]} 39. Bd4 {[%clk 0:00:11]}  Rd2 {[%clk 0:00:12]} 40. Bc3 {[%clk 0:00:09]}  Rc2 {[%clk 0:00:11]} 41. Bd4 {[%clk 0:00:09]}  Rc1 {[%clk 0:00:12]} 42. Re2 {[%clk 0:00:07]}  Qb5 {[%clk 0:00:12]} 43. Nf6+ {[%clk 0:00:07]}  Kf8 {[%clk 0:00:12]} 44. Be3 {[%clk 0:00:03]}  Qxe2 {[%clk 0:00:11]} 45. Bxc1 {[%clk 0:00:03]}  Qxa2 {[%clk 0:00:11]} 46. Bh6+ {[%clk 0:00:03]}  Ke7 {[%clk 0:00:10]} 47. Nxg4 {[%clk 0:00:03]}  Qxb3 {[%clk 0:00:10]} 48. Bg5+ {[%clk 0:00:04]}  Ke6 {[%clk 0:00:10]} 49. Ne3 {[%clk 0:00:05]}  Kxe5 {[%clk 0:00:10]} 50. f4+ {[%clk 0:00:05]}  Ke4 {[%clk 0:00:11]} 0-1


[Site "https://www.chess.com"]

[Event "Titled Tuesday Blitz August 16 Early 2022"]
[White "Sargissyan, Sargis"]
[Black "Turayev, Shahruh"]
[WhiteFideId "13303210"]
[BlackFideId "14003856"]
[WhiteElo "2102"]
[BlackElo "2217"]
[Result "1-0"]
[Round "05"]
[TimeControl "180+2"]
[Date "2022.08.18"]
[WhiteClock "0:00:00"]
[BlackClock "0:00:00"]

1. e4 {[%clk 0:00:00]}  e6 {[%clk 0:00:00]} 2. d4 {[%clk 0:00:00]}  d5 {[%clk 0:00:00]} 3. Nc3 {[%clk 0:00:00]}  Bb4 {[%clk 0:00:00]} 4. e5 {[%clk 0:00:00]}  Ne7 {[%clk 0:00:00]} 5. a3 {[%clk 0:00:00]}  Bxc3+ {[%clk 0:00:00]} 6. bxc3 {[%clk 0:00:00]}  c5 {[%clk 0:00:00]} 7. Qg4 {[%clk 0:00:00]}  cxd4 {[%clk 0:00:00]} 8. Bd3 {[%clk 0:00:00]}  Qa5 {[%clk 0:00:00]} 9. Rb1 {[%clk 0:00:00]}  O-O {[%clk 0:00:00]} 10. Nf3 {[%clk 0:00:00]}  Ng6 {[%clk 0:00:00]} 11. O-O {[%clk 0:00:00]}  Nd7 {[%clk 0:00:00]} 12. cxd4 {[%clk 0:00:00]}  b6 {[%clk 0:00:00]} 13. h4 {[%clk 0:00:00]}  f5 {[%clk 0:00:00]} 14. Qg3 {[%clk 0:00:00]}  Ba6 {[%clk 0:00:00]} 15. Bd2 {[%clk 0:00:00]}  Qa4 {[%clk 0:00:00]} 16. h5 {[%clk 0:00:00]}  Nh8 {[%clk 0:00:00]} 17. Bb4 {[%clk 0:00:00]}  Rfe8 {[%clk 0:00:00]} 18. Bxa6 {[%clk 0:00:00]}  Qxa6 {[%clk 0:00:00]} 19. h6 {[%clk 0:00:00]}  g6 {[%clk 0:00:00]} 20. Ng5 {[%clk 0:00:00]}  Nf7 {[%clk 0:00:00]} 21. c4 {[%clk 0:00:00]}  Qxc4 {[%clk 0:00:00]} 22. Rfc1 {[%clk 0:00:00]}  Qa2 {[%clk 0:00:00]} 23. Nxf7 {[%clk 0:00:00]}  Kxf7 {[%clk 0:00:00]} 24. Ra1 {[%clk 0:00:00]}  Qb2 {[%clk 0:00:00]} 25. Bc3 {[%clk 0:00:00]}  Qe2 {[%clk 0:00:00]} 26. Bb4 {[%clk 0:00:00]}  Qg4 {[%clk 0:00:00]} 27. Rc7 {[%clk 0:00:00]}  Red8 {[%clk 0:00:00]} 28. Qc3 {[%clk 0:00:00]}  g5 {[%clk 0:00:00]} 29. Qc6 {[%clk 0:00:00]}  Ke8 {[%clk 0:00:00]} 30. Qxe6# {[%clk 0:00:00]} 1-0


[Site "https://www.chess.com"]

[Event "Titled Tuesday Blitz August 16 Early 2022"]
[White "Sharapov, Evgeny"]
[Black "Sanchez, Robert"]
[WhiteFideId "14103133"]
[BlackFideId "2034360"]
[WhiteElo "2367"]
[BlackElo "1966"]
[Result "1-0"]
[Round "05"]
[TimeControl "180+2"]
[Date "2022.08.18"]
[WhiteClock "0:00:00"]
[BlackClock "0:00:00"]

1. e4 {[%clk 0:00:00]}  e6 {[%clk 0:00:00]} 2. d4 {[%clk 0:00:00]}  d5 {[%clk 0:00:00]} 3. Nc3 {[%clk 0:00:00]}  Nf6 {[%clk 0:00:00]} 4. e5 {[%clk 0:00:00]}  Ne4 {[%clk 0:00:00]} 5. Nxe4 {[%clk 0:00:00]}  dxe4 {[%clk 0:00:00]} 6. Bc4 {[%clk 0:00:00]}  a6 {[%clk 0:00:00]} 7. Be3 {[%clk 0:00:00]}  b5 {[%clk 0:00:00]} 8. Bb3 {[%clk 0:00:00]}  Bb7 {[%clk 0:00:00]} 9. Ne2 {[%clk 0:00:00]}  Nd7 {[%clk 0:00:00]} 10. O-O {[%clk 0:00:00]}  c5 {[%clk 0:00:00]} 11. c3 {[%clk 0:00:00]}  cxd4 {[%clk 0:00:00]} 12. cxd4 {[%clk 0:00:00]}  Nb6 {[%clk 0:00:00]} 13. Nc3 {[%clk 0:00:00]}  Nc4 {[%clk 0:00:00]} 14. Bxc4 {[%clk 0:00:00]}  bxc4 {[%clk 0:00:00]} 15. Qa4+ {[%clk 0:00:00]}  Qd7 {[%clk 0:00:00]} 16. Qxc4 {[%clk 0:00:00]}  Rc8 {[%clk 0:00:00]} 17. Qb3 {[%clk 0:00:00]}  Be7 {[%clk 0:00:00]} 18. Rfd1 {[%clk 0:00:00]}  O-O {[%clk 0:00:00]} 19. d5 {[%clk 0:00:00]}  exd5 {[%clk 0:00:00]} 20. Nxd5 {[%clk 0:00:00]}  Bxd5 {[%clk 0:00:00]} 21. Qxd5 {[%clk 0:00:00]}  Qg4 {[%clk 0:00:00]} 22. Qd7 {[%clk 0:00:00]}  Qxd7 {[%clk 0:00:00]} 23. Rxd7 {[%clk 0:00:00]}  Rfe8 {[%clk 0:00:00]} 24. Rad1 {[%clk 0:00:00]}  Rc2 {[%clk 0:00:00]} 25. Rb7 {[%clk 0:00:00]}  h6 {[%clk 0:00:00]} 26. h3 {[%clk 0:00:00]}  Bg5 {[%clk 0:00:00]} 27. Bxg5 {[%clk 0:00:00]}  hxg5 {[%clk 0:00:00]} 28. Rdd7 {[%clk 0:00:00]}  Rxe5 {[%clk 0:00:00]} 29. Rxf7 {[%clk 0:00:00]}  Rxb2 {[%clk 0:00:00]} 30. Rxg7+ {[%clk 0:00:00]}  Kf8 {[%clk 0:00:00]} 31. Rxg5 {[%clk 0:00:00]}  Rxg5 {[%clk 0:00:00]} 32. Rxb2 {[%clk 0:00:00]} 1-0


[Site "https://www.chess.com"]

[Event "Titled Tuesday Blitz August 16 Early 2022"]
[White "Shashikant, Kutwal"]
[Black "Kambrath, Yannick"]
[WhiteFideId "5006520"]
[BlackFideId "20632525"]
[WhiteElo "2321"]
[BlackElo "2236"]
[Result "0-1"]
[Round "05"]
[TimeControl "180+2"]
[Date "2022.08.18"]
[WhiteClock "0:00:00"]
[BlackClock "0:00:00"]

1. e4 {[%clk 0:00:00]}  c5 {[%clk 0:00:00]} 2. Nf3 {[%clk 0:00:00]}  e6 {[%clk 0:00:00]} 3. d4 {[%clk 0:00:00]}  cxd4 {[%clk 0:00:00]} 4. Nxd4 {[%clk 0:00:00]}  Nf6 {[%clk 0:00:00]} 5. Nc3 {[%clk 0:00:00]}  Nc6 {[%clk 0:00:00]} 6. g3 {[%clk 0:00:00]}  Bb4 {[%clk 0:00:00]} 7. Bg2 {[%clk 0:00:00]}  d5 {[%clk 0:00:00]} 8. O-O {[%clk 0:00:00]}  Bxc3 {[%clk 0:00:00]} 9. bxc3 {[%clk 0:00:00]}  Nxe4 {[%clk 0:00:00]} 10. Bxe4 {[%clk 0:00:00]}  dxe4 {[%clk 0:00:00]} 11. Ba3 {[%clk 0:00:00]}  Nxd4 {[%clk 0:00:00]} 12. cxd4 {[%clk 0:00:00]}  Qa5 {[%clk 0:00:00]} 13. Bd6 {[%clk 0:00:00]}  Qd5 {[%clk 0:00:00]} 14. Ba3 {[%clk 0:00:00]}  Qa5 {[%clk 0:00:00]} 15. Bd6 {[%clk 0:00:00]}  Qd5 {[%clk 0:00:00]} 16. Ba3 {[%clk 0:00:00]}  Bd7 {[%clk 0:00:00]} 17. Qg4 {[%clk 0:00:00]}  Bc6 {[%clk 0:00:00]} 18. c4 {[%clk 0:00:00]}  Qxd4 {[%clk 0:00:00]} 19. Rad1 {[%clk 0:00:00]}  Qf6 {[%clk 0:00:00]} 20. Qh5 {[%clk 0:00:00]}  g5 {[%clk 0:00:00]} 21. Qe2 {[%clk 0:00:00]}  Qf3 {[%clk 0:00:00]} 22. Qb2 {[%clk 0:00:00]}  f6 {[%clk 0:00:00]} 23. Rd6 {[%clk 0:00:00]}  Kf7 {[%clk 0:00:00]} 24. Rxc6 {[%clk 0:00:00]}  bxc6 {[%clk 0:00:00]} 25. Qb7+ {[%clk 0:00:00]}  Kg6 {[%clk 0:00:00]} 26. Qxc6 {[%clk 0:00:00]}  Qxa3 {[%clk 0:00:00]} 27. Qxe6 {[%clk 0:00:00]}  Rhe8 {[%clk 0:00:00]} 28. Qd7 {[%clk 0:00:00]}  Re7 {[%clk 0:00:00]} 29. Qd5 {[%clk 0:00:00]}  Rae8 {[%clk 0:00:00]} 30. Rb1 {[%clk 0:00:00]}  e3 {[%clk 0:00:00]} 31. Rb5 {[%clk 0:00:00]}  exf2+ {[%clk 0:00:00]} 32. Kg2 {[%clk 0:00:00]}  Qxa2 {[%clk 0:00:00]} 33. Kf1 {[%clk 0:00:00]}  Re1+ {[%clk 0:00:00]} 0-1


[Site "https://www.chess.com"]

[Event "Titled Tuesday Blitz August 16 Early 2022"]
[White "Sovetbekova, Nurai"]
[Black "Omelja, Artem"]
[WhiteFideId "13801910"]
[BlackFideId "14119846"]
[WhiteElo "1646"]
[BlackElo "2382"]
[Result "0-1"]
[Round "05"]
[TimeControl "180+2"]
[Date "2022.08.18"]
[WhiteClock "0:00:00"]
[BlackClock "0:00:00"]

1. d4 {[%clk 0:00:00]}  d5 {[%clk 0:00:00]} 2. c4 {[%clk 0:00:00]}  c6 {[%clk 0:00:00]} 3. Nf3 {[%clk 0:00:00]}  e6 {[%clk 0:00:00]} 4. g3 {[%clk 0:00:00]}  dxc4 {[%clk 0:00:00]} 5. Bg2 {[%clk 0:00:00]}  b5 {[%clk 0:00:00]} 6. a4 {[%clk 0:00:00]}  Bb7 {[%clk 0:00:00]} 7. O-O {[%clk 0:00:00]}  Nf6 {[%clk 0:00:00]} 8. Ne5 {[%clk 0:00:00]}  a6 {[%clk 0:00:00]} 9. b3 {[%clk 0:00:00]}  cxb3 {[%clk 0:00:00]} 10. Bb2 {[%clk 0:00:00]}  Nfd7 {[%clk 0:00:00]} 11. Nd3 {[%clk 0:00:00]}  Be7 {[%clk 0:00:00]} 12. Qxb3 {[%clk 0:00:00]}  O-O {[%clk 0:00:00]} 13. Rc1 {[%clk 0:00:00]}  Nb6 {[%clk 0:00:00]} 14. Nc5 {[%clk 0:00:00]}  Bxc5 {[%clk 0:00:00]} 15. dxc5 {[%clk 0:00:00]}  Nxa4 {[%clk 0:00:00]} 16. Rxa4 {[%clk 0:00:00]}  bxa4 {[%clk 0:00:00]} 17. Qxb7 {[%clk 0:00:00]}  Nd7 {[%clk 0:00:00]} 18. Qxc6 {[%clk 0:00:00]}  Rb8 {[%clk 0:00:00]} 19. Ba1 {[%clk 0:00:00]}  Rc8 {[%clk 0:00:00]} 20. Qxa4 {[%clk 0:00:00]}  Nxc5 {[%clk 0:00:00]} 21. Qg4 {[%clk 0:00:00]}  f6 {[%clk 0:00:00]} 22. Na3 {[%clk 0:00:00]}  e5 {[%clk 0:00:00]} 23. h4 {[%clk 0:00:00]}  Kh8 {[%clk 0:00:00]} 24. Kh2 {[%clk 0:00:00]}  Nb3 {[%clk 0:00:00]} 25. Rxc8 {[%clk 0:00:00]}  Qxc8 {[%clk 0:00:00]} 26. Bb2 {[%clk 0:00:00]}  Qxg4 {[%clk 0:00:00]} 0-1


[Site "https://www.chess.com"]